bitfinex/quotes_SOLUSD_20250206
["timestamp","ask_amount","ask_price","bid_price","bid_amount"]
[1738880136575,0.063,192.05,192.03,0.78079806]
[1738880136782,0.063,192.05,192.04,71.75179265]
[1738880136978,0.063,192.05,192.04,72.00277265]
[1738880137388,0.9801,192.1,192.04,72.00277265]
[1738880137389,0.063,192.12,192.08,20.0]
[1738880137591,0.063,192.12,192.11,38.21445412]
[1738880137999,2.0431,192.12,192.11,38.21445412]
[1738880138314,1.063,192.12,192.11,43.41975412]
[1738880138480,0.063,192.12,192.11,43.41975412]
[1738880138676,0.063,192.12,192.11,57.98857402]
[1738880139080,0.063,192.12,192.11,43.41975412]
[1738880139313,1.063,192.12,192.11,38.21445412]
[1738880139504,2.0431,192.12,192.11,38.21445412]
[1738880139883,1.063,192.12,192.11,38.21445412]
[1738880140085,0.063,192.12,192.11,57.20807265]
[1738880140614,0.0001,192.12,192.11,57.20807265]
[1738880140798,0.063,192.14,192.13,0.12549]
[1738880141115,0.063,192.14,192.13,52.78298827]
[1738880141315,2.0431,192.22,192.16,20.0]
[1738880141613,0.063,192.22,192.21,51.75179265]
[1738880141795,0.063,192.22,192.21,38.99452425]
[1738880141991,0.063,192.22,192.17,0.25098]
[1738880141992,1.0431,192.22,192.2,38.21445412]
[1738880142194,1.0,192.19,192.18,38.21445412]
[1738880142591,0.9801,192.21,192.18,38.21445412]
[1738880142812,0.9801,192.21,192.2,38.21445412]
[1738880143108,0.9801,192.21,192.2,43.41735412]
[1738880143311,1.9801,192.21,192.17,0.7801628]
[1738880143496,1.9801,192.18,192.16,38.21445412]
[1738880143704,0.9801,192.15,192.14,38.21445412]
[1738880143887,0.9801,192.15,192.12,38.21445412]
[1738880143888,0.9801,192.14,192.12,38.21445412]
[1738880144222,1.9801,192.12,192.1,38.21445412]
[1738880144384,1.063,192.22,192.04,0.78062864]
[1738880144385,0.9801,192.07,192.04,0.78062864]
[1738880144585,0.9801,192.09,192.06,38.21445412]
[1738880144898,0.9801,192.09,192.05,5.2069]
[1738880144899,0.9801,192.09,192.08,38.21445412]
[1738880145099,1.0,192.11,192.08,38.99516248]
[1738880145299,1.0,192.11,192.1,38.21445412]
[1738880145608,1.9801,192.11,192.1,38.21445412]
[1738880145809,0.9801,192.09,192.08,38.21445412]
[1738880145982,1.9801,192.09,192.08,38.21445412]
[1738880146715,1.0,192.1,192.08,38.21445412]
[1738880146887,1.0,192.1,192.09,38.21445412]
[1738880147083,1.9801,192.1,192.09,38.21445412]
[1738880147301,6.4587,192.19,192.1,0.12549]
[1738880147302,1.0,192.12,192.1,0.12549]
[1738880147503,1.0,192.16,192.11,38.99490263]
[1738880147818,0.9801,192.19,192.15,38.21445412]
[1738880148001,1.9801,192.19,192.18,38.21445412]
[1738880148497,0.9801,192.18,192.16,38.21445412]
[1738880148700,1.0,192.17,192.16,38.21445412]
[1738880148903,1.0,192.17,192.1,38.99474729]
[1738880148904,1.0,192.14,192.13,38.21445412]
[1738880149920,1.0,192.15,192.13,38.21445412]
[1738880150209,1.0,192.16,192.14,5.32979]
[1738880150389,1.0,192.16,192.15,51.62630265]
[1738880150592,0.9801,192.15,192.13,38.21445412]
[1738880150790,0.9801,192.12,192.1,38.21445412]
[1738880151093,0.9801,192.12,192.05,13.0167]
[1738880151094,1.0,192.12,192.11,51.75179265]
[1738880151599,1.0,192.12,192.11,38.21445412]
[1738880151600,1.9801,192.12,192.11,38.21445412]
[1738880151929,1.9801,192.1,192.08,38.21445412]
[1738880152320,1.0,192.11,192.09,38.21445412]
[1738880152514,1.0,192.11,192.1,58.21445412]
[1738880152714,1.9801,192.11,192.1,71.62630265]
[1738880152918,1.9801,192.07,192.03,0.78055232]
[1738880153103,1.9801,192.04,192.03,5.2072]
[1738880153305,1.9801,192.06,192.03,5.98808613]
[1738880153515,1.0,192.04,192.03,5.2072]
[1738880153702,1.0,192.04,192.03,18.61904853]
[1738880154107,1.0,192.09,192.06,20.0]
[1738880154302,0.9801,192.11,192.08,13.53733853]
[1738880154501,1.0,192.09,192.08,18.74343853]
[1738880154922,0.9801,192.11,192.08,18.74343853]
[1738880155114,0.9801,192.11,192.1,38.21445412]
[1738880155295,1.9801,192.11,192.1,38.21445412]
[1738880155490,1.9801,192.11,192.08,18.74343853]
[1738880155491,1.9801,192.06,192.05,38.21445412]
[1738880155799,1.0,192.07,192.06,13.78831853]
[1738880156010,1.9801,192.1,192.06,52.00277265]
[1738880156323,1.9801,192.1,192.09,38.21445412]
[1738880156622,1.9801,192.1,192.06,13.41184853]
[1738880156623,1.9801,192.08,192.07,38.21445412]
[1738880156807,1.0,192.04,192.03,38.21445412]
[1738880157115,1.0,192.04,192.03,51.62630265]
[1738880157524,1.9801,192.04,192.03,38.21445412]
[1738880157720,1.0,192.02,192.01,51.62630265]
[1738880157931,1.9801,192.02,192.01,38.21445412]
[1738880158108,1.0,192.02,192.01,58.21445412]
[1738880158296,1.9801,192.02,192.01,58.21445412]
[1738880158496,1.9801,192.02,192.01,71.62630265]
[1738880158918,1.9801,192.02,191.99,5.2086]
[1738880159114,1.9801,192.0,191.99,38.21445412]
[1738880159313,1.9801,191.98,191.97,38.21445412]
[1738880159499,1.0,192.01,191.97,38.21445412]
[1738880159694,1.9801,192.01,192.0,38.21445412]
[1738880159919,1.0,192.01,192.0,51.62630265]
[1738880160220,1.9801,192.01,192.0,38.21445412]
[1738880160423,1.9801,192.01,191.98,0.78101502]
[1738880160424,1.9801,191.99,191.96,38.21445412]
[1738880160606,1.9801,191.99,191.95,5.99080385]
[1738880160607,1.0,191.97,191.95,5.99080385]
[1738880160814,1.9801,191.97,191.96,51.62630265]
[1738880161235,1.9801,191.97,191.96,38.21445412]
[1738880161401,0.9801,191.99,191.96,38.21445412]
[1738880161705,0.9801,192.01,192.0,0.12549]
[1738880162095,0.9801,192.04,192.0,13.78831853]
[1738880162295,0.9801,192.05,192.03,38.21445412]
[1738880162598,0.9801,192.05,192.04,23.43995412]
[1738880163026,1.9801,192.05,192.04,23.43995412]
[1738880163401,0.9801,192.05,192.04,23.43995412]
[1738880163735,1.0,192.09,192.08,20.0]
[1738880163932,1.0431,192.14,192.12,20.0]
[1738880164096,2.0431,192.14,192.13,23.43995412]
[1738880164599,1.0,192.08,192.07,23.43995412]
[1738880164804,1.0,192.08,192.06,23.43995412]
[1738880165013,1.9801,192.09,192.08,13.41184853]
[1738880165210,1.9801,192.09,192.08,36.85180265]
[1738880165544,1.9801,192.05,192.04,28.64715412]
[1738880165700,1.0,192.05,192.04,28.64715412]
[1738880166125,1.0,192.06,192.05,13.41184853]
[1738880166300,1.0,192.09,192.06,0.12549]
[1738880166508,1.0,192.12,192.09,0.12549]
[1738880166710,1.0431,192.14,192.11,36.97729265]
[1738880166910,2.0431,192.14,192.13,56.85180265]
[1738880167118,1.063,192.14,192.13,56.85180265]
[1738880167331,0.063,192.14,192.13,56.97729265]
[1738880167722,0.063,192.14,192.13,57.22827265]
[1738880168117,1.063,192.14,192.13,56.85180265]
[1738880168316,0.063,192.14,192.13,62.05660265]
[1738880168529,0.063,192.14,192.13,62.18209265]
[1738880169133,1.0431,192.14,192.13,62.18209265]
[1738880169334,0.063,192.14,192.13,62.18209265]
[1738880169634,1.0431,192.14,192.13,62.18209265]
[1738880169836,0.9801,192.12,192.11,23.43995412]
[1738880170042,0.063,192.14,192.12,13.53733853]
[1738880170238,2.0431,192.14,192.13,36.85180265]
[1738880170427,0.063,192.14,192.13,36.97729265]
[1738880170629,1.0431,192.14,192.13,36.97729265]
[1738880170829,0.063,192.14,192.13,36.97729265]
[1738880171060,2.0431,192.14,192.13,36.97729265]
[1738880171252,1.063,192.14,192.13,36.97729265]
[1738880171616,0.063,192.14,192.13,42.43307265]
[1738880171916,0.063,192.22,192.2,0.12549]
[1738880172122,0.063,192.22,192.21,37.63198533]
[1738880172439,0.0001,192.22,192.21,38.00845533]
[1738880172927,0.9802,192.22,192.21,14.19203121]
[1738880173118,0.0001,192.22,192.21,14.19191226]
[1738880173524,0.0001,192.22,192.21,19.77098226]
[1738880174022,0.9802,192.22,192.21,19.52000226]
[1738880174432,1.9801,192.21,192.18,23.43995412]
[1738880174638,1.9801,192.19,192.18,23.43995412]
[1738880174944,0.9801,192.17,192.16,23.43995412]
[1738880175132,0.9801,192.17,192.14,18.2157]
[1738880175133,1.9801,192.16,192.15,23.43995412]
[1738880175339,1.9801,192.2,192.17,0.12549]
[1738880175644,1.0,192.2,192.19,23.43995412]
[1738880175942,1.0,192.2,192.19,28.64305412]
[1738880176118,1.0,192.21,192.19,42.96059783]
[1738880176320,1.0001,192.22,192.2,36.85180265]
[1738880176519,0.0001,192.22,192.21,38.00836053]
[1738880176721,0.063,192.25,192.24,20.37647]
[1738880176942,0.063,192.25,192.24,58.00817831]
[1738880177843,0.063,192.25,192.24,63.20997831]
[1738880179642,1.9801,192.24,192.23,23.43995412]
[1738880179832,0.9801,192.22,192.21,23.43995412]
[1738880180036,1.0,192.21,192.2,42.05440265]
[1738880181342,1.9801,192.21,192.2,42.17989265]
[1738880181646,1.9801,192.16,192.14,5.2045]
[1738880181951,1.9801,192.14,192.13,23.43995412]
[1738880182153,1.9801,192.13,192.12,5.2049]
[1738880182320,1.9801,192.13,192.12,0.12549]
[1738880182516,23.43995412,192.19,192.05,0.78059273]
[1738880182517,1.9801,192.07,192.05,0.78059273]
[1738880182730,1.9801,192.07,192.06,38.08242153]
[1738880182943,1.0,192.06,192.05,38.08242153]
[1738880183126,1.0,192.06,192.05,38.86308652]
[1738880183534,1.9801,192.06,192.05,51.74525006]
[1738880183733,1.0,192.06,192.05,56.95215006]
[1738880184047,1.9801,192.07,192.06,0.12549]
[1738880185243,1.9801,192.06,192.05,38.08242153]
[1738880185542,1.9801,192.01,191.98,0.78088074]
[1738880185749,1.9801,192.01,191.99,5.2085]
[1738880186259,1.9801,192.01,192.0,0.03]
[1738880187336,1.9801,192.01,192.0,5.2383]
[1738880187538,0.9801,192.03,192.01,0.12549]
[1738880187856,0.9801,192.06,192.03,13.78831853]
[1738880188049,1.9801,192.1,192.08,0.12549]
[1738880188341,1.9801,192.1,192.09,38.20791153]
[1738880188749,1.9801,192.11,192.1,0.12549]
[1738880189041,0.9801,192.13,192.12,0.12549]
[1738880189248,0.9801,192.13,192.12,51.74525006]
[1738880189419,1.0,192.15,192.14,0.12549]
[1738880189420,1.9801,192.15,192.14,0.12549]
[1738880189625,0.9801,192.19,192.17,0.12549]
[1738880189824,0.9801,192.21,192.19,13.66282853]
[1738880190029,1.0431,192.22,192.21,0.12549]
[1738880190745,0.063,192.22,192.21,13.66282853]
[1738880190920,0.063,192.22,192.21,18.86542853]
[1738880191347,2.0431,192.22,192.21,18.86542853]
[1738880191558,2.0431,192.22,192.21,0.12549]
[1738880193838,0.063,192.22,192.21,14.44300115]
[1738880194036,0.063,192.22,192.21,0.12549]
[1738880194037,2.0431,192.22,192.21,0.12549]
[1738880194451,0.063,192.22,192.21,13.78831853]
[1738880194755,2.0431,192.22,192.21,18.99091853]
[1738880194961,0.063,192.22,192.21,18.99091853]
[1738880195170,2.0431,192.22,192.21,18.86542853]
[1738880195664,1.0431,192.22,192.21,18.86542853]
[1738880195967,0.063,192.22,192.21,18.99091853]
[1738880196136,2.0431,192.22,192.21,18.86542853]
[1738880196763,0.063,192.22,192.21,18.86542853]
[1738880197059,0.063,192.22,192.21,18.99091853]
[1738880197860,2.0431,192.22,192.21,18.86542853]
[1738880199566,0.063,192.22,192.21,18.99091853]
[1738880201657,0.063,192.26,192.25,20.37647]
[1738880201967,0.063,192.26,192.25,34.56818398]
[1738880202468,1.0431,192.26,192.25,71.74525006]
[1738880202765,2.0431,192.26,192.25,58.08242153]
[1738880203340,1.9801,192.21,192.19,38.08242153]
[1738880203563,1.9801,192.19,192.18,38.08242153]
[1738880203771,0.9801,192.16,192.15,43.28662153]
[1738880203980,1.9801,192.16,192.15,43.28662153]
[1738880204277,1.9801,192.15,192.14,5.2045]
[1738880204479,0.9801,192.12,192.11,38.08242153]
[1738880204646,1.9801,192.11,192.1,23.43091963]
[1738880204849,1.9801,192.09,192.08,28.63701963]
[1738880205055,1.9801,192.09,192.08,23.43091963]
[1738880205266,1.9801,192.08,192.02,13.79973444]
[1738880205473,1.0,192.09,192.03,32.01451853]
[1738880205655,0.9801,192.09,192.08,57.09374816]
[1738880205860,1.9801,192.11,192.09,0.25098]
[1738880206051,1.9801,192.12,192.11,0.25098]
[1738880206379,0.9801,192.08,192.07,23.43091963]
[1738880206677,0.9801,192.09,192.07,38.073277]
[1738880206884,0.9801,192.09,192.06,38.073277]
[1738880207090,1.0,192.06,192.05,38.073277]
[1738880207257,1.0,192.06,192.05,51.73610553]
[1738880207582,1.9801,192.06,192.05,51.73610553]
[1738880207777,1.9801,192.06,192.05,38.073277]
[1738880207948,1.0,192.03,192.01,0.78074696]
[1738880208154,1.9801,192.05,192.04,20.25098]
[1738880208576,1.9801,192.05,192.04,58.324257]
[1738880208866,1.9801,192.05,192.04,58.073277]
[1738880209078,0.9801,192.03,192.02,38.073277]
[1738880209384,0.9801,192.03,192.02,51.86159553]
[1738880209557,0.9801,192.03,192.02,38.073277]
[1738880209751,1.9801,192.03,192.02,38.073277]
[1738880211486,1.9801,192.03,192.02,43.531957]
[1738880211669,1.9801,192.05,192.04,20.0]
[1738880211985,1.9801,192.05,192.04,58.073277]
[1738880212181,1.9801,192.05,192.04,58.103277]
[1738880212761,6.4064,192.23,192.06,13.53733853]
[1738880213081,6.4064,192.23,192.13,13.66282853]
[1738880213082,38.073277,192.2,192.13,13.66282853]
[1738880213254,38.073277,192.2,192.12,38.073277]
[1738880213462,38.073277,192.18,192.1,38.073277]
[1738880213693,38.073277,192.16,192.07,38.073277]
[1738880213863,38.073277,192.14,192.07,38.073277]
[1738880214063,38.073277,192.14,192.08,0.25098]
[1738880214795,38.073277,192.14,192.08,5.45698]
[1738880215091,38.073277,192.16,192.08,5.45698]
[1738880215464,38.073277,192.18,192.12,0.25098]
[1738880215652,38.073277,192.2,192.13,38.073277]
[1738880215854,6.4064,192.23,192.14,38.073277]
[1738880215855,38.073277,192.22,192.14,38.073277]
[1738880216259,38.073277,192.21,192.14,38.073277]
[1738880216479,38.073277,192.22,192.14,38.073277]
[1738880216696,6.4064,192.23,192.18,38.073277]
[1738880216857,6.4064,192.23,192.19,0.25098]
[1738880217059,6.4064,192.23,192.2,38.073277]
[1738880217300,1.6502,192.24,192.2,38.073277]
[1738880217471,0.063,192.25,192.2,38.073277]
[1738880219188,0.063,192.25,192.18,38.073277]
[1738880220107,0.063,192.25,192.2,38.073277]
[1738880220267,0.063,192.25,192.23,0.25098]
[1738880220471,0.063,192.25,192.24,38.324257]
[1738880220665,0.063,192.25,192.24,52.641606]
[1738880220969,0.063,192.25,192.24,38.324257]
[1738880221476,0.063,192.25,192.24,51.86159553]
[1738880221681,0.063,192.26,192.25,13.78831853]
[1738880221898,0.063,192.26,192.25,51.86159553]
[1738880222077,0.063,192.26,192.25,57.06309553]
[1738880222468,0.063,192.29,192.28,33.78831853]
[1738880222689,0.063,192.29,192.28,72.64134262]
[1738880223588,0.11163499,192.33,192.31,71.86159553]
[1738880223787,0.0001,192.32,192.31,72.64111234]
[1738880224502,0.0001,192.32,192.31,59.10377381]
[1738880224715,0.0001,192.32,192.31,58.324257]
[1738880225009,0.0001,192.32,192.31,38.073277]
[1738880225572,0.0001,192.32,192.27,38.073277]
[1738880225803,0.0001,192.32,192.3,38.073277]
[1738880225970,0.0001,192.32,192.29,38.324257]
[1738880226575,0.0001,192.32,192.29,23.63425578]
[1738880226774,0.0001,192.32,192.29,23.38327578]
[1738880226977,0.0001,192.32,192.24,13.0045]
[1738880226978,0.0001,192.32,192.26,23.38327578]
[1738880227284,23.38327578,192.31,192.23,23.38327578]
[1738880227694,23.38327578,192.27,192.2,28.58587578]
[1738880227898,23.38327578,192.29,192.22,23.38327578]
[1738880228501,24.38327578,192.29,192.22,23.38327578]
[1738880228698,23.38327578,192.27,192.2,28.58607578]
[1738880228894,24.38327578,192.27,192.18,23.41327578]
[1738880229203,25.38327578,192.27,192.18,23.41327578]
[1738880229376,1.0,192.26,192.18,23.41327578]
[1738880229580,23.38327578,192.25,192.18,0.03]
[1738880229788,1.0,192.26,192.18,0.03]
[1738880229789,25.38327578,192.21,192.18,0.03]
[1738880229988,23.38327578,192.23,192.18,0.03]
[1738880230202,0.78206494,192.28,192.18,28.61657578]
[1738880230203,23.38327578,192.27,192.18,28.61657578]
[1738880230403,23.38327578,192.25,192.18,28.61657578]
[1738880230595,38.04073346,192.26,192.18,43.27403346]
[1738880231286,21.0,192.28,192.18,5.2333]
[1738880231684,38.04073346,192.27,192.19,38.04073346]
[1738880231903,1.6551,192.29,192.24,38.04073346]
[1738880232206,0.0001,192.32,192.27,38.04073346]
[1738880232411,0.0001,192.32,192.3,38.04073346]
[1738880232708,0.0001,192.32,192.31,0.25098]
[1738880232911,0.0001,192.32,192.31,38.29171346]
[1738880233204,0.0001,192.32,192.31,38.04073346]
[1738880233415,0.0001,192.32,192.31,38.82043257]
[1738880233578,0.0001,192.32,192.31,38.29171346]
[1738880233997,0.0001,192.32,192.26,38.04073346]
[1738880234302,38.04073346,192.3,192.22,43.24283346]
[1738880234686,38.04073346,192.3,192.25,20.0]
[1738880235001,0.0001,192.32,192.29,0.25098]
[1738880235312,0.0001,192.32,192.31,0.25098]
[1738880235496,0.0001,192.32,192.31,14.56805704]
[1738880235888,0.0001,192.32,192.31,19.76795704]
[1738880236499,0.0001,192.32,192.31,6.23061851]
[1738880236699,0.0001,192.32,192.26,43.24173346]
[1738880237100,0.0001,192.32,192.27,0.25098]
[1738880237289,0.0001,192.32,192.26,38.04073346]
[1738880237487,38.04083346,192.32,192.24,38.04073346]
[1738880237687,38.04073346,192.3,192.22,43.24283346]
[1738880237898,38.04083346,192.32,192.24,43.24243346]
[1738880238212,38.04083346,192.32,192.25,0.25098]
[1738880238825,38.04073346,192.3,192.22,38.04073346]
[1738880239123,38.04073346,192.26,192.18,38.07073346]
[1738880239287,38.04073346,192.24,192.18,0.03]
[1738880239913,38.04073346,192.22,192.18,0.03]
[1738880240413,38.04073346,192.24,192.18,0.03]
[1738880240988,38.04073346,192.2,192.18,0.03]
[1738880242100,39.04073346,192.2,192.18,0.03]
[1738880242302,1.0,192.19,192.18,0.03]
[1738880242704,2.0,192.19,192.18,0.03]
[1738880243918,2.0,192.19,192.05,5.2068]
[1738880243919,6.1725,192.15,192.05,5.2068]
[1738880244230,38.04073346,192.18,192.11,38.04073346]
[1738880244520,38.04073346,192.2,192.11,38.04073346]
[1738880244700,40.04073346,192.2,192.11,38.04073346]
[1738880244900,38.04073346,192.18,192.11,38.04073346]
[1738880245100,38.04073346,192.2,192.13,38.04073346]
[1738880245417,38.04073346,192.15,192.07,38.04073346]
[1738880246422,38.04073346,192.15,192.07,43.24693346]
[1738880246996,39.04073346,192.15,192.07,38.04073346]
[1738880247335,38.04073346,192.09,192.04,0.03]
[1738880247508,39.04073346,192.09,192.04,0.03]
[1738880248345,38.04073346,192.07,192.04,0.03]
[1738880248834,6.3808,192.09,192.04,0.03]
[1738880249001,38.04073346,192.1,192.04,0.03]
[1738880249200,38.04073346,192.13,192.05,38.04073346]
[1738880249505,38.04073346,192.13,192.07,38.04073346]
[1738880249712,38.04073346,192.13,192.05,38.29171346]
[1738880249921,6.2365,192.14,192.07,38.04073346]
[1738880250351,6.2365,192.14,192.07,43.24703346]
[1738880251556,39.04073346,192.13,192.05,38.04073346]
[1738880251754,39.04073346,192.13,192.04,5.2369]
[1738880251755,38.04073346,192.11,192.04,0.03]
[1738880251965,39.04073346,192.11,192.04,0.03]
[1738880252264,38.04073346,192.11,192.04,0.03]
[1738880253737,38.04073346,192.07,192.04,0.03]
[1738880253952,38.04073346,192.05,192.04,0.03]
[1738880255237,38.04073346,192.05,192.0,0.03]
[1738880255238,1.0,192.02,192.0,0.03]
[1738880255439,38.04073346,192.01,192.0,0.03]
[1738880256260,6.6312,192.05,192.0,0.03]
[1738880256626,44.67193346,192.05,192.0,0.03]
[1738880256830,38.04073346,192.02,192.0,0.03]
[1738880257360,38.04073346,192.04,192.0,0.03]
[1738880257854,7.6312,192.05,192.0,0.03]
[1738880257855,38.04073346,192.02,192.0,0.03]
[1738880258637,23.46839768,192.02,192.0,0.03]
[1738880259137,23.46839768,192.01,192.0,0.03]
[1738880259348,2.0,191.95,191.88,0.03]
[1738880259547,23.46839768,191.89,191.88,0.03]
[1738880259751,22.78206494,191.96,191.88,0.03]
[1738880259752,23.46839768,191.91,191.88,0.03]
[1738880260639,38.18156262,191.91,191.88,0.03]
[1738880262446,39.18156262,191.97,191.89,38.18156262]
[1738880262646,39.18156262,191.97,191.88,0.28098]
[1738880262647,38.18156262,191.94,191.88,0.03]
[1738880262826,1.0,191.97,191.88,0.03]
[1738880262827,38.18156262,191.93,191.88,0.03]
[1738880263032,38.18156262,191.89,191.88,0.03]
[1738880263966,53.71890115,191.89,191.88,0.0001]
[1738880264246,38.18156262,191.9,191.88,0.0001]
[1738880265453,39.18156262,191.9,191.88,0.0001]
[1738880265654,38.18156262,191.9,191.88,0.0001]
[1738880266752,1.0,191.89,191.88,0.0001]
[1738880266931,39.18156262,191.9,191.88,0.0001]
[1738880267132,38.18156262,191.9,191.88,0.0001]
[1738880269152,2.78206494,191.89,191.88,0.0001]
[1738880269343,1.0,191.89,191.88,0.0001]
[1738880269957,2.78206494,191.89,191.88,0.0001]
[1738880270961,1.0,191.89,191.88,0.0001]
[1738880271160,2.12549,191.89,191.88,0.0001]
[1738880271357,15.78831853,191.89,191.88,0.0001]
[1738880271567,85.61698115,191.88,191.87,0.0001]
[1738880271734,1.0,191.81,191.8,0.03]
[1738880272053,78.14519018,191.81,191.8,0.03]
[1738880272250,38.18156262,191.81,191.8,0.03]
[1738880273753,38.30705262,191.81,191.8,0.03]
[1738880273955,121.90046377,191.81,191.8,0.0001]
[1738880275151,121.90046377,191.81,191.68,0.03]
[1738880275152,21.0,191.78,191.68,0.03]
[1738880275358,38.18156262,191.79,191.71,38.18156262]
[1738880275938,38.18156262,191.77,191.69,38.18156262]
[1738880276448,38.18156262,191.73,191.68,0.03]
[1738880277344,38.18156262,191.75,191.68,0.03]
[1738880278370,1.0,191.77,191.69,38.18156262]
[1738880278371,38.18156262,191.77,191.69,38.18156262]
[1738880278672,38.18156262,191.77,191.7,0.25098]
[1738880279243,38.18156262,191.79,191.72,0.25098]
[1738880279471,38.18156262,191.81,191.74,0.25098]
[1738880279769,38.18156262,191.83,191.75,38.18156262]
[1738880280280,38.18156262,191.83,191.76,5.2148]
[1738880280453,38.18156262,191.83,191.77,0.25098]
[1738880280798,38.18156262,191.87,191.79,38.18156262]
[1738880280988,38.18156262,191.87,191.8,0.25098]
[1738880281579,1.0,191.9,191.76,5.99672384]
[1738880281580,38.18156262,191.85,191.77,38.18156262]
[1738880281870,38.18156262,191.89,191.82,0.25098]
[1738880282075,6.1271,191.92,191.85,5.2124]
[1738880282076,38.18156262,191.92,191.85,5.2124]
[1738880282663,0.063,191.9,191.85,5.2124]
[1738880283296,23.49546541,191.87,191.83,5.2129]
[1738880284192,23.49546541,191.85,191.77,36.53116541]
[1738880284359,23.49546541,191.83,191.75,25.05046541]
[1738880284667,23.49546541,191.83,191.76,5.2148]
[1738880285569,23.49546541,191.81,191.75,1.555]
[1738880285775,23.49546541,191.81,191.75,0.03]
[1738880286894,23.49546541,191.81,191.75,5.245]
[1738880288101,23.49546541,191.84,191.77,23.74644541]
[1738880288307,23.55846541,191.9,191.82,23.49546541]
[1738880288600,23.49546541,191.84,191.76,28.71016541]
[1738880288896,23.49546541,191.84,191.77,0.25098]
[1738880289096,23.49546541,191.84,191.76,5.2147]
[1738880289261,23.49546541,191.8,191.75,0.03]
[1738880289466,23.49546541,191.8,191.75,20.03]
[1738880289791,23.49546541,191.78,191.75,0.03]
[1738880289966,23.49546541,191.76,191.75,0.03]
[1738880290163,24.49546541,191.76,191.75,0.03]
[1738880290391,20.0,191.73,191.64,0.03]
[1738880290597,23.49546541,191.69,191.64,0.03]
[1738880291864,23.49546541,191.71,191.64,23.52546541]
[1738880292069,20.0,191.73,191.66,23.49546541]
[1738880292574,38.24784312,191.75,191.66,43.46524312]
[1738880293568,38.24784312,191.75,191.68,5.247]
[1738880293767,38.24784312,191.75,191.68,0.03]
[1738880294193,38.24784312,191.73,191.68,0.03]
[1738880294597,58.24784312,191.75,191.68,0.03]
[1738880294799,38.24784312,191.79,191.71,0.25098]
[1738880295001,43.88784312,191.81,191.72,38.24784312]
[1738880295208,38.24784312,191.79,191.72,38.24784312]
[1738880295391,38.24784312,191.79,191.71,0.25098]
[1738880295900,38.24784312,191.81,191.73,0.25098]
[1738880296205,38.24784312,191.79,191.71,5.34159]
[1738880296401,38.24784312,191.77,191.68,38.27784312]
[1738880296603,38.24784312,191.73,191.68,0.03]
[1738880296809,1.78206494,191.78,191.68,0.03]
[1738880296810,38.24784312,191.69,191.68,0.03]
[1738880298095,38.24784312,191.71,191.68,0.03]
[1738880298286,38.24784312,191.73,191.68,0.03]
[1738880300695,38.24784312,191.75,191.68,38.27784312]
[1738880300908,38.24784312,191.81,191.72,38.24784312]
[1738880301226,38.24784312,191.83,191.74,38.24784312]
[1738880301716,38.24784312,191.83,191.76,38.24784312]
[1738880301882,38.24784312,191.85,191.78,38.24784312]
[1738880302378,38.24784312,191.87,191.78,38.24784312]
[1738880302595,38.24784312,191.89,191.81,5.2134]
[1738880303521,38.24784312,191.89,191.82,38.24784312]
[1738880304018,38.24784312,191.83,191.76,43.46244312]
[1738880304220,0.78206494,191.88,191.75,6.2929]
[1738880304221,1.0,191.85,191.75,6.2929]
[1738880304395,1.0,191.85,191.73,1.32752139]
[1738880304396,38.24784312,191.79,191.73,1.32752139]
[1738880304600,38.24784312,191.77,191.71,1.6432]
[1738880304798,38.24784312,191.77,191.7,6.2929]
[1738880305219,38.24784312,191.79,191.71,0.25098]
[1738880305406,0.78206494,191.82,191.71,0.25098]
[1738880305407,38.24784312,191.82,191.75,0.03]
[1738880305929,38.24784312,191.84,191.77,0.25098]
[1738880306920,38.24784312,191.84,191.77,5.46538]
[1738880307322,38.24784312,191.8,191.75,0.03]
[1738880307512,38.24784312,191.8,191.75,20.03]